fUST/lending_fUST_20250623
["ID","MTS","AMOUNT","RATE_DAILY","PERIOD"]
[367017389,1750618196393,-460.0,0.00041917,120]
[367017390,1750618196445,-460.0,0.00041917,120]
[367017391,1750618196503,-460.0,0.00041917,120]
[367017392,1750618196554,-460.0,0.00041917,120]
[367017393,1750618196601,-463.05249911,0.00041917,120]
[367017394,1750618196651,-4547.0,0.00041917,120]
[367017395,1750618196702,-460.0,0.00041917,120]
[367017396,1750618196749,-460.0,0.00041917,120]
[367017397,1750618196794,-460.0,0.00041917,120]
[367017398,1750618196845,-933.66,0.00041917,120]
[367017399,1750618196889,-593.21,0.00041917,120]
[367017400,1750618196932,-460.0,0.00041917,120]
[367017401,1750618196979,-1870.23,0.00041917,120]
[367017402,1750618197021,-460.0,0.00041917,120]
[367017403,1750618197064,-474.67,0.00041917,120]
[367017404,1750618197106,-460.0,0.00041917,120]
[367017405,1750618197147,-12754.68,0.00041917,120]
[367017406,1750618197182,-460.0,0.00041917,120]
[367017408,1750618197221,-460.0,0.00041917,120]
[367017409,1750618197257,-341.99466412,0.00041917,120]
[367017410,1750618197294,-460.0,0.00041917,120]
[367017411,1750618197330,-460.0,0.00041917,120]
[367017412,1750618197366,-460.0,0.00041917,120]
[367017413,1750618197402,-289.43529922,0.00041917,120]
[367017414,1750618197438,-460.0,0.00041917,120]
[367017415,1750618197475,-460.0,0.00041917,120]
[367017416,1750618197514,-460.0,0.00041917,120]
[367017417,1750618197560,-460.0,0.00041917,120]
[367017418,1750618197609,-268.72212638,0.00041917,120]
[367017419,1750618197656,-460.0,0.00041917,120]
[367017420,1750618197705,-460.0,0.00041917,120]
[367017421,1750618197750,-1302.28,0.00041917,120]
[367017422,1750618197796,-387.37505576,0.00041917,120]
[367017423,1750618197843,-460.0,0.00041917,120]
[367017424,1750618197886,-460.0,0.00041917,120]
[367017426,1750618197923,-464.0,0.00041917,120]
[367017428,1750618197958,-832.9,0.00041917,120]
[367017429,1750618197997,-977.48,0.00041917,120]
[367017431,1750618198044,-343.01821586,0.00041917,120]
[367017433,1750618198083,-624.68,0.00041917,120]
[367017435,1750618198118,-460.0,0.00041917,120]
[367017437,1750618198157,-460.0,0.00041917,120]
[367017439,1750618198194,-1011.44,0.00041917,120]
[367017441,1750618198232,-466.15,0.00041917,30]
[367017443,1750618198269,-460.0,0.00041917,120]
[367017445,1750618198312,-460.0,0.00041917,120]
[367017447,1750618198358,-1005.62,0.00041917,120]
[367017449,1750618198404,-460.0,0.00041917,120]
[367017451,1750618198454,-460.0,0.00041917,120]
[367017453,1750618198501,-435.39795241,0.00041917,120]
[367017455,1750618198548,-460.0,0.00041917,120]
[367017457,1750618198594,-12237.92,0.00041917,120]
[367017461,1750618198812,-460.0,0.00041917,120]
[367017462,1750618198861,-460.0,0.00041917,120]
[367017465,1750618198910,-460.0,0.00041917,120]
[367017467,1750618198958,-460.0,0.00041917,120]
[367017469,1750618199003,-1122.63,0.00041917,120]
[367017471,1750618199049,-460.0,0.00041917,120]
[367017473,1750618199101,-2083.55,0.00041917,120]
[367017475,1750618199144,-851.34,0.00041917,120]
[367017477,1750618199188,-9466.89,0.00041917,120]
[367017479,1750618199236,-441.31142154,0.00041917,120]
[367017601,1750618205375,-1412.86522812,0.00020664,2]
[367017603,1750618205395,-1072.28498468,0.00020889,10]
[367017618,1750618206098,-565.22934384,0.00020799,2]
[367017620,1750618206118,-54.04501532,0.00020889,10]
[367017621,1750618206139,-938.61,0.00020889,10]
[367017622,1750618206159,-470.28,0.00020889,3]
[367017624,1750618206182,-154.71718298,0.00020898,2]
[367017694,1750618209540,2116.79202649,0.000202,2]
[367017934,1750618232337,-876.47010365,0.00020678,2]
[367017954,1750618232711,-1265.56506567,0.00020678,2]
[367017955,1750618232721,-1200.0,0.00020887,2]
[367017956,1750618232731,-300.0,0.00020888,2]
[367017957,1750618232741,-300.0,0.00020888,2]
[367017959,1750618232751,-300.0,0.00020888,2]
[367017960,1750618232761,-300.0,0.00020888,2]
[367017961,1750618232770,-576.37,0.00020888,10]
[367017962,1750618232780,-543.18,0.00020889,10]
[367017964,1750618232790,-691.64,0.00020889,10]
[367017965,1750618232799,-345.28281702,0.00020898,2]
[367017966,1750618232809,-500.0,0.00020898,2]
[367017967,1750618232819,-500.0,0.00020898,2]
[367017968,1750618232828,-500.0,0.00020898,2]
[367017970,1750618232838,-500.0,0.00020898,2]
[367017971,1750618232847,-500.0,0.00020898,2]
[367017972,1750618232856,-500.0,0.00020898,2]
[367017973,1750618232866,-500.0,0.00020898,2]
[367017974,1750618232875,-500.0,0.00020898,2]
[367017976,1750618232885,-500.0,0.00020898,2]
[367017977,1750618232894,-500.0,0.00020898,2]
[367017978,1750618232903,-500.0,0.00020898,2]
[367017979,1750618232912,-234.30036518,0.00020898,2]
[367018087,1750618238307,-561.62444291,0.00020798,2]
[367018088,1750618238318,-500.0,0.00020897,2]
[367018089,1750618238327,-582.00852714,0.00020897,2]
[367018090,1750618238337,-500.0,0.00020897,2]
[367018092,1750618238346,-500.0,0.00020897,2]
[367018093,1750618238356,-190.15411912,0.00020897,2]
[367018094,1750618238368,-205.43632096,0.00020897,2]
[367018095,1750618238377,-500.0,0.00020897,2]
[367018096,1750618238387,-500.0,0.00020897,2]
[367018098,1750618238396,-500.0,0.00020897,2]
[367018099,1750618238406,-500.0,0.00020897,2]
[367018100,1750618238415,-500.0,0.00020897,2]
[367018101,1750618238425,-590.36997484,0.00020897,2]
[367018102,1750618238434,-500.0,0.00020897,2]
[367018104,1750618238444,-500.0,0.00020897,2]
[367018105,1750618238453,-500.0,0.00020897,2]
[367018106,1750618238463,-500.0,0.00020897,2]
[367018107,1750618238472,-500.0,0.00020897,2]
[367018108,1750618238482,-500.0,0.00020897,2]
[367018110,1750618238493,-500.0,0.00020897,2]
[367018111,1750618238502,-500.0,0.00020897,2]
[367018112,1750618238514,-500.0,0.00020897,2]
[367018113,1750618238526,-500.0,0.00020897,2]
[367018115,1750618238536,-500.0,0.00020897,2]
[367018116,1750618238546,-420.62432938,0.00020897,2]
[367018117,1750618238557,-423.85816638,0.00020897,2]
[367018118,1750618238568,-500.0,0.00020897,2]
[367018119,1750618238578,-500.0,0.00020897,2]
[367018121,1750618238587,-500.0,0.00020897,2]
[367018122,1750618238599,-500.0,0.00020897,2]
[367018123,1750618238609,-175.43554881,0.00020897,2]
[367018124,1750618238619,-500.0,0.00020897,2]
[367018125,1750618238628,-500.0,0.00020897,2]
[367018126,1750618238637,-500.0,0.00020897,2]
[367018128,1750618238647,-420.49713046,0.00020897,2]
[367018129,1750618238656,-500.0,0.00020897,2]
[367018130,1750618238665,-500.0,0.00020897,2]
[367018131,1750618238675,-500.0,0.00020897,2]
[367018132,1750618238685,-500.0,0.00020897,2]
[367018134,1750618238695,-405.73731368,0.00020897,2]
[367018135,1750618238704,-500.0,0.00020897,2]
[367018136,1750618238714,-463.39405833,0.00020897,2]
[367018137,1750618238723,-500.0,0.00020897,2]
[367018138,1750618238734,-500.0,0.00020897,2]
[367018140,1750618238744,-500.0,0.00020897,2]
[367018141,1750618238754,-500.0,0.00020897,2]
[367018142,1750618238764,-500.0,0.00020897,2]
[367018143,1750618238774,-500.0,0.00020897,2]
[367018144,1750618238783,-500.0,0.00020897,2]
[367018145,1750618238793,-500.0,0.00020897,2]
[367018147,1750618238803,-300.0,0.00020897,2]
[367018148,1750618238813,-500.0,0.00020897,2]
[367018149,1750618238823,-500.0,0.00020897,2]
[367018150,1750618238833,-500.0,0.00020897,2]
[367018151,1750618238844,-236.25644031,0.00020897,2]
[367018153,1750618238854,-500.0,0.00020897,2]
[367018154,1750618238864,-500.0,0.00020897,2]
[367018155,1750618238874,-500.0,0.00020897,2]
[367018156,1750618238884,-500.0,0.00020897,2]
[367018157,1750618238894,-500.0,0.00020897,2]
[367018159,1750618238904,-500.0,0.00020897,2]
[367018160,1750618238914,-500.0,0.00020897,2]
[367018164,1750618239064,-500.0,0.00020897,2]
[367018165,1750618239075,-500.0,0.00020897,2]
[367018166,1750618239086,-500.0,0.00020897,2]
[367018168,1750618239095,-500.0,0.00020897,2]
[367018169,1750618239105,-500.0,0.00020897,2]
[367018170,1750618239115,-500.0,0.00020897,2]
[367018171,1750618239126,-219.19859052,0.00020897,2]
[367018172,1750618239136,-500.0,0.00020897,2]
[367018174,1750618239145,-500.0,0.00020897,2]
[367018175,1750618239155,-500.0,0.00020897,2]
[367018176,1750618239164,-500.0,0.00020897,2]
[367018177,1750618239174,-500.0,0.00020897,2]
[367018178,1750618239183,-500.0,0.00020897,2]
[367018180,1750618239192,-489.59150768,0.00020897,2]
[367018181,1750618239202,-500.0,0.00020897,2]
[367018182,1750618239212,-500.0,0.00020897,2]
[367018183,1750618239222,-500.0,0.00020897,2]
[367018184,1750618239232,-500.0,0.00020897,2]
[367018186,1750618239242,-500.0,0.00020897,2]
[367018187,1750618239252,-500.0,0.00020897,2]
[367018188,1750618239261,-500.0,0.00020897,2]
[367018189,1750618239271,-500.0,0.00020897,2]
[367018190,1750618239281,-500.0,0.00020897,2]
[367018192,1750618239291,-498.8952144,0.00020897,2]
[367018193,1750618239300,-500.0,0.00020897,2]
[367018194,1750618239310,-500.0,0.00020897,2]
[367018195,1750618239319,-500.0,0.00020897,2]
[367018196,1750618239329,-500.0,0.00020897,2]
[367018198,1750618239338,-500.0,0.00020897,2]
[367018199,1750618239347,-500.0,0.00020897,2]
[367018200,1750618239357,-500.0,0.00020897,2]
[367018201,1750618239366,-500.0,0.00020897,2]
[367018202,1750618239376,-500.0,0.00020897,2]
[367018204,1750618239385,-500.0,0.00020897,2]
[367018205,1750618239394,-500.0,0.00020897,2]
[367018206,1750618239404,-500.0,0.00020897,2]
[367018207,1750618239414,-50000.0,0.00020899,2]
[367018208,1750618239423,-1794.39,0.000209,2]
[367018210,1750618239433,-160.0,0.00021,2]
[367018211,1750618239442,-500.0,0.00021663,2]
[367018212,1750618239452,-500.0,0.00021663,2]
[367018213,1750618239461,-500.0,0.00021663,2]
[367018214,1750618239470,-5671.5987433,0.00021731,2]
[367018216,1750618239480,-318.2768055,0.00021769,2]
[367018217,1750618239490,-500.0,0.00021917,2]
[367018218,1750618239500,-205.10653006,0.00021918,2]
[367018219,1750618239510,-1000.0,0.0002221,2]
[367018220,1750618239523,-1000.0,0.0002221,2]
[367018222,1750618239532,-1000.0,0.0002221,2]
[367018223,1750618239543,-500.0,0.00022465,2]
[367018224,1750618239554,-524.02598587,0.00022499,2]
[367018225,1750618239565,-160.0,0.00022499,2]
[367018227,1750618239575,-160.0,0.00022509,2]
[367018228,1750618239584,-160.0,0.00022509,2]
[367018229,1750618239594,-836.56272071,0.00022509,2]
[367018230,1750618239603,-160.0,0.00022509,2]
[367018231,1750618239613,-160.0,0.00022509,2]
[367018232,1750618239623,-160.0,0.00022509,2]
[367018233,1750618239632,-12551.52821599,0.00022509,2]
[367018234,1750618239642,-425.01221603,0.00022509,2]
[367018235,1750618239652,-230.14598372,0.00022509,2]
[367018236,1750618239661,-846.39664074,0.00022509,2]
[367018237,1750618239671,-213.59462818,0.00022509,2]
[367018238,1750618239681,-187.57983738,0.00022516,2]
[367018239,1750618239692,-420.0,0.00022707,2]
[367018240,1750618239702,-419.94662959,0.00022719,2]
[367018241,1750618239711,-1000.0,0.00022719,2]
[367018242,1750618239721,-1000.0,0.00022719,2]
[367018243,1750618239731,-420.0,0.00022724,2]
[367018244,1750618239742,-420.0,0.00022724,2]
[367018245,1750618239752,-420.0,0.00022724,2]
[367018246,1750618239762,-5888.0,0.0002274,2]
[367018247,1750618239772,-5888.0,0.00022742,2]
[367018248,1750618239782,-1500.0,0.00022758,2]
[367018249,1750618239792,-1500.0,0.00022758,2]
[367018250,1750618239801,-1157.98674882,0.00022758,2]
[367018251,1750618239812,-526.0,0.00022763,2]
[367018252,1750618239821,-493.8,0.000228,5]
[367018253,1750618239831,-1680.0,0.00022831,2]
[367018254,1750618239841,-5888.0,0.0002286,2]
[367018255,1750618239850,-526.0,0.00022868,2]
[367018256,1750618239860,-1000.0,0.00022871,2]
[367018257,1750618239870,-1964.76,0.00022898,3]
[367018258,1750618239880,-982.38,0.00022898,3]
[367018259,1750618239890,-3929.54,0.00022908,3]
[367018260,1750618239900,-846.39664074,0.00022908,3]
[367018261,1750618239910,-160.0,0.00022908,3]
[367018262,1750618239920,-213.59462818,0.00022908,3]
[367018263,1750618239929,-526.0,0.00022936,2]
[367018264,1750618239939,-156.76,0.0002298,3]
[367018265,1750618239948,-74798.36580423,0.0002299,2]
[367018266,1750618239958,-500.0,0.00023,2]
[367018267,1750618239968,-230.14598372,0.00023,3]
[367018268,1750618239979,-160.0,0.00023,3]
[367018269,1750618239991,-160.0,0.00023,3]
[367018270,1750618240001,-836.56272071,0.00023,3]
[367018271,1750618240011,-160.0,0.00023,3]
[367018272,1750618240020,-425.01221603,0.00023,3]
[367018273,1750618240030,-7725.58,0.00023,7]
[367018274,1750618240039,-2500.0,0.00023064,2]
[367018275,1750618240049,-2500.0,0.00023064,2]
[367018276,1750618240058,-493.8,0.00023085,5]
[367018277,1750618240068,-151.0,0.000231,7]
[367018278,1750618240077,-2500.0,0.00023164,2]
[367018279,1750618240087,-1615.9,0.0002321,3]
[367018280,1750618240097,-354.6155038,0.00023213,2]
[367018281,1750618240107,-1500.0,0.00023267,2]
[367018282,1750618240116,-1500.0,0.00023267,2]
[367018283,1750618240126,-2000.0,0.00023306,2]
[367018284,1750618240136,-2000.0,0.00023306,2]
[367018285,1750618240146,-436.347956,0.0002331,2]
[367018286,1750618240156,-499.3,0.00023313,2]
[367018287,1750618240167,-153.0,0.00023323,2]
[367018288,1750618240177,-731.3011094,0.00023342,2]
[367018289,1750618240187,-152.61247216,0.00023369,2]
[367018290,1750618240197,-207.4,0.00023369,2]
[367018291,1750618240206,-594.18146038,0.00023369,2]
[367018292,1750618240216,-493.8,0.0002337,5]
[367018293,1750618240226,-500.0,0.00023392,2]
[367018294,1750618240238,-1000.0,0.0002342,2]
[367018295,1750618240248,-500.0,0.0002345,2]
[367018296,1750618240259,-965.0,0.00023478,2]
[367018297,1750618240269,-654.0,0.00023478,2]
[367018298,1750618240278,-2161.0,0.00023478,2]
[367018299,1750618240288,-406.0,0.00023478,2]
[367018300,1750618240298,-406.0,0.00023478,2]
[367018301,1750618240307,-150.0,0.00023478,2]
[367018302,1750618240317,-150.0,0.00023478,2]
[367018303,1750618240326,-150.0,0.00023478,2]
[367018304,1750618240336,-151.0,0.000235,7]
[367018305,1750618240345,-846.39664074,0.000235,7]
[367018306,1750618240354,-1910.949144,0.0002352,4]
[367018307,1750618240364,-500.0,0.00023541,2]
[367018308,1750618240373,-500.0,0.00023556,2]
[367018309,1750618240383,-500.0,0.00023556,2]
[367018310,1750618240393,-1794.39,0.000236,7]
[367018311,1750618240402,-213.59462818,0.000236,7]
[367018312,1750618240412,-265.0,0.00023605,2]
[367018313,1750618240422,-500.0,0.0002361,2]
[367018314,1750618240431,-592.85541307,0.0002361,2]
[367018315,1750618240441,-500.0,0.0002361,2]
[367018316,1750618240450,-500.0,0.0002361,2]
[367018317,1750618240460,-3000.0,0.00023612,2]
[367018318,1750618240469,-3000.0,0.00023612,2]
[367018319,1750618240479,-314.5,0.00023646,2]
[367018320,1750618240491,-493.8,0.00023655,6]
[367018321,1750618240501,-500.0,0.00023678,2]
[367018322,1750618240511,-3443.0,0.000237,2]
[367018323,1750618240525,-1884.01567669,0.00023712,2]
[367018324,1750618240534,-500.0,0.00023715,2]
[367018325,1750618240545,-5888.0,0.00023723,2]
[367018326,1750618240555,-153.95703304,0.00023728,2]
[367018327,1750618240565,-988.5110856,0.00023753,3]
[367018328,1750618240575,-365.8215413,0.0002377,2]
[367018329,1750618240584,-365.8215413,0.0002377,2]
[367018330,1750618240596,-365.8215413,0.0002377,2]
[367018331,1750618240607,-365.8215413,0.0002377,2]
[367018332,1750618240617,-365.8215413,0.0002377,2]
[367018333,1750618240627,-365.8215413,0.0002377,2]
[367018334,1750618240636,-365.8215413,0.0002377,2]
[367018335,1750618240646,-365.8215413,0.0002377,2]
[367018336,1750618240656,-365.8215413,0.0002377,2]
[367018337,1750618240666,-365.8215413,0.0002377,2]
[367018338,1750618240675,-365.8215413,0.0002377,2]
[367018339,1750618240684,-365.8215413,0.0002377,2]
[367018340,1750618240694,-365.8215413,0.0002377,2]
[367018341,1750618240703,-365.8215413,0.0002377,2]
[367018342,1750618240713,-365.8215413,0.0002377,2]
[367018343,1750618240722,-365.8215413,0.0002377,2]
[367018344,1750618240732,-731.0967628,0.0002377,2]
[367018345,1750618240743,-517.83945462,0.00023815,2]
[367018346,1750618240753,-805.608019,0.00023815,2]
[367018347,1750618240762,-500.0,0.00023827,2]
[367018348,1750618240772,-1479.26591566,0.00023854,2]
[367018349,1750618240781,-2500.0,0.00023854,2]
[367018350,1750618240791,-500.0,0.00023864,2]
[367018351,1750618240800,-872.68406578,0.000239,2]
[367018352,1750618240810,-151.0,0.000239,5]
[367018353,1750618240820,-9877.38075765,0.000239,2]
[367018354,1750618240831,-1000.0,0.00023905,2]
[367018355,1750618240841,-378.67876736,0.00023939,2]
[367018356,1750618240851,-174.216079,0.0002394,7]
[367018357,1750618240860,-174.216079,0.0002394,7]
[367018358,1750618240870,-312.48292,0.0002394,7]
[367018359,1750618240879,-151.0,0.0002394,7]
[367018360,1750618240889,-452.645563,0.0002394,7]
[367018361,1750618240898,-452.645563,0.0002394,7]
[367018362,1750618240907,-151.0,0.0002394,7]
[367018363,1750618240917,-151.0,0.0002394,7]
[367018364,1750618240927,-493.8,0.00023941,6]
[367018365,1750618240936,-500.0,0.00023973,2]
[367018366,1750618240945,-500.0,0.00023973,2]
[367018367,1750618240955,-500.0,0.00023973,2]
[367018368,1750618240965,-151.0,0.00023978,2]
[367018369,1750618240975,-151.0,0.00023978,2]
[367018370,1750618241111,-151.0,0.00023978,2]
[367018371,1750618241121,-151.0,0.00023978,2]
[367018372,1750618241130,-151.0,0.00023978,2]
[367018373,1750618241140,-151.0,0.00023978,2]
[367018374,1750618241149,-206.49189023,0.00023978,2]
[367018375,1750618241159,-151.0,0.00023978,2]
[367018376,1750618241168,-151.49926672,0.00023978,2]
[367018377,1750618241177,-500.0,0.00023978,2]
[367018378,1750618241187,-217.30088505,0.00023978,2]
[367018379,1750618241197,-500.0,0.00023986,2]
[367018380,1750618241206,-500.0,0.00023986,2]
[367018381,1750618241216,-38583.05850054,0.00024,2]
[367018382,1750618241226,-2607.28,0.00024,4]
[367018383,1750618241235,-451.97302203,0.00024,2]
[367018384,1750618241244,-151.0,0.00024,7]
[367018385,1750618241254,-1831.48392892,0.00024,2]
[367018386,1750618241264,-189.382966,0.00024,7]
[367018387,1750618241274,-189.382966,0.00024,7]
[367018388,1750618241284,-151.0,0.00024,2]
[367018389,1750618241293,-151.0,0.00024,7]
[367018390,1750618241303,-2924.27,0.00024,2]
[367018391,1750618241313,-174.216079,0.00024,7]
[367018392,1750618241322,-174.216079,0.00024,7]
[367018393,1750618241332,-312.48292,0.00024,7]
[367018394,1750618241341,-784.217425,0.00024,7]
[367018395,1750618241351,-784.217425,0.00024,7]
[367018396,1750618241360,-151.0,0.00024,7]
[367018397,1750618241369,-187.70370809,0.00024,2]
[367018398,1750618241379,-452.645563,0.00024,7]
[367018399,1750618241389,-452.645563,0.00024,7]
[367018400,1750618241398,-151.0,0.00024,7]
[367018401,1750618241408,-151.0,0.00024,7]
[367018402,1750618241418,-230.14598372,0.00024,7]
[367018403,1750618241428,-160.0,0.00024,7]
[367018404,1750618241438,-160.0,0.00024,7]
[367018405,1750618241447,-836.56272071,0.00024,7]
[367018406,1750618241457,-836.56272071,0.00024,7]
[367018407,1750618241467,-160.0,0.00024,7]
[367018408,1750618241476,-160.0,0.00024,7]
[367018409,1750618241486,-425.01221603,0.00024,7]
[367018410,1750618241495,-158.54,0.00024,2]
[367018411,1750618241505,-151.0,0.00024005,2]
[367018412,1750618241516,-151.0,0.00024005,2]
[367018413,1750618241526,-272.33497223,0.00024005,2]
[367018414,1750618241535,-151.0,0.00024005,2]
[367018415,1750618241545,-500.0,0.00024005,2]
[367018416,1750618241556,-198.0,0.00024033,2]
[367018417,1750618241566,-198.0,0.00024033,2]
[367018418,1750618241575,-198.0,0.00024033,2]
[367018419,1750618241585,-500.0,0.00024033,2]
[367018420,1750618241595,-153.0,0.00024034,2]
[367018421,1750618241606,-177.3077519,0.00024034,2]
[367018422,1750618241616,-153.0,0.00024034,2]
[367018423,1750618241626,-159.1115641,0.00024034,2]
[367018424,1750618241636,-177.3077519,0.00024034,2]
[367018425,1750618241645,-153.0,0.00024034,2]
[367018426,1750618241655,-153.0,0.00024034,2]
[367018427,1750618241666,-159.1115641,0.00024034,2]
[367018428,1750618241676,-574.6497757,0.00024034,2]
[367018429,1750618241685,-177.3077519,0.00024034,2]
[367018430,1750618241695,-306.0000001,0.00024034,2]
[367018431,1750618241705,-153.0,0.00024034,2]
[367018432,1750618241714,-318.192186,0.00024034,2]
[367018433,1750618241724,-177.3077519,0.00024034,2]
[367018434,1750618241733,-354.6155038,0.00024034,2]
[367018435,1750618241743,-354.5749334,0.00024034,2]
[367018436,1750618241753,-153.0,0.00024034,2]
[367018437,1750618241762,-574.6497757,0.00024034,2]
[367018438,1750618241772,-500.0,0.0002406,2]
[367018439,1750618241782,-500.0,0.0002408,2]
[367018440,1750618241791,-500.0,0.0002408,2]
[367018441,1750618241801,-500.0,0.0002408,2]
[367018442,1750618241810,-500.0,0.00024088,2]
[367018443,1750618241821,-3680.0,0.00024097,2]
[367018444,1750618241831,-1000.0,0.00024104,2]
[367018445,1750618241840,-1081.17648423,0.00024104,2]
[367018446,1750618241850,-151.0,0.00024104,7]
[367018447,1750618241859,-500.0,0.00024115,2]
[367018448,1750618241868,-4854.0,0.00024139,2]
[367018449,1750618241878,-500.0,0.00024142,2]
[367018450,1750618241888,-503.4130077,0.00024158,2]
[367018451,1750618241897,-1000.0,0.00024158,2]
[367018452,1750618241907,-151.0,0.0002416,7]
[367018453,1750618241916,-3500.0,0.0002416,2]
[367018454,1750618241925,-1779.3277191,0.0002416,2]
[367018455,1750618241934,-500.0,0.0002417,2]
[367018456,1750618241944,-500.0,0.00024197,2]
[367018457,1750618241953,-85835.99,0.000242,2]
[367018458,1750618241962,-800.0,0.00024221,2]
[367018459,1750618241972,-500.0,0.00024225,2]
[367018460,1750618241994,-493.8,0.00024226,6]
[367018461,1750618242012,-500.0,0.00024252,2]
[367018462,1750618242032,-800.0,0.00024278,2]
[367018463,1750618242053,-500.0,0.00024279,2]
[367018464,1750618242073,-12500.0,0.00024295,3]
[367018465,1750618242092,-151.0,0.000243,7]
[367018466,1750618242110,-12500.0,0.00024304,3]
[367018467,1750618242125,-500.0,0.00024307,2]
[367018468,1750618242145,-12500.0,0.00024313,3]
[367018469,1750618242165,-12500.0,0.00024322,3]
[367018470,1750618242181,-12500.0,0.00024322,3]
[367018471,1750618242196,-12500.0,0.0002433,3]
[367018472,1750618242215,-12500.0,0.0002433,3]
[367018473,1750618242232,-500.0,0.00024334,2]
[367018474,1750618242246,-12500.0,0.00024339,3]
[367018475,1750618242262,-12500.0,0.00024339,3]
[367018476,1750618242277,-12500.0,0.00024348,3]
[367018477,1750618242293,-12500.0,0.00024348,3]
[367018478,1750618242309,-12500.0,0.00024358,3]
[367018479,1750618242324,-240.738901,0.00024358,7]
[367018480,1750618242339,-240.738901,0.00024358,7]
[367018481,1750618242354,-500.0,0.00024362,2]
[367018482,1750618242369,-500.0,0.00024373,2]
[367018483,1750618242384,-503.52158142,0.00024373,2]
[367018484,1750618242398,-500.0,0.00024373,2]
[367018485,1750618242414,-500.0,0.00024373,2]
[367018486,1750618242429,-500.0,0.00024373,2]
[367018487,1750618242445,-500.0,0.00024373,2]
[367018488,1750618242461,-500.0,0.00024389,2]
[367018489,1750618242476,-151.0,0.000244,7]
[367018490,1750618242492,-1217.980769,0.000244,2]
[367018491,1750618242507,-1217.980769,0.000244,2]
[367018492,1750618242524,-274.76654,0.000244,7]
[367018493,1750618242538,-274.76654,0.000244,7]
[367018494,1750618242554,-151.0,0.000244,7]
[367018495,1750618242570,-225.442222,0.000244,7]
[367018496,1750618242586,-225.442222,0.000244,7]
[367018497,1750618242603,-230.14598372,0.000244,3]
[367018498,1750618242617,-230.14598372,0.000244,7]
[367018500,1750618242632,-160.0,0.000244,3]
[367018503,1750618242648,-160.0,0.000244,7]
[367018505,1750618242663,-151.0,0.000244,7]
[367018508,1750618242679,-160.0,0.000244,3]
[367018511,1750618242695,-836.56272071,0.000244,3]
[367018513,1750618242711,-151.0,0.000244,7]
[367018516,1750618242725,-151.0,0.000244,7]
[367018518,1750618242735,-160.0,0.000244,3]
[367018520,1750618242746,-212.046924,0.000244,7]
[367018522,1750618242757,-212.046924,0.000244,7]
[367018524,1750618242767,-151.0,0.000244,7]
[367018526,1750618242777,-425.01221603,0.000244,3]
[367018528,1750618242788,-846.39664074,0.000244,3]
[367018530,1750618242798,-213.59462818,0.000244,3]
[367018533,1750618242808,-1342.23517694,0.00024402,2]
[367018536,1750618242818,-264.32452911,0.00024406,2]
[367018539,1750618242828,-500.0,0.00024409,2]
[367018543,1750618242839,-500.0,0.00024416,2]
[367018546,1750618242849,-500.0,0.00024444,2]
[367018548,1750618242859,-9877.38075765,0.00024465,2]
[367018551,1750618242869,-500.0,0.00024471,2]